[Event "Early-Titled-Tuesday-Blitz-February-06-2024"]
[Site "Chess.com"]
[Date "2024.02.06"]
[Round "3"]
[White "Szachulec75"]
[Black "Maftuna2303"]
[Result "1-0"]
[WhiteElo "2221"]
[BlackElo "2421"]
[TimeControl "180+1"]
[EndTime "8:28:49 PST"]
[Termination "Szachulec75 won by resignation"]

1. Nf3 {[%clk 0:02:59.7]} 1... Nf6 {[%clk 0:02:49.4]} 2. g3 {[%clk 0:02:57.6]}
2... d5 {[%clk 0:02:48.8]} 3. Bg2 {[%clk 0:02:58.5]} 3... Bg4 {[%clk 0:02:48.4]}
4. d3 {[%clk 0:02:59.4]} 4... e6 {[%clk 0:02:47.3]} 5. O-O {[%clk 0:02:59.2]}
5... h6 {[%clk 0:02:46.8]} 6. Nbd2 {[%clk 0:02:59.7]} 6... c5 {[%clk 0:02:46.6]}
7. e4 {[%clk 0:03:00.2]} 7... Nc6 {[%clk 0:02:44.7]} 8. c3 {[%clk 0:03:00.4]}
8... Be7 {[%clk 0:02:44.9]} 9. Qc2 {[%clk 0:02:59.9]} 9... Qc7 {[%clk
0:02:43.7]} 10. Re1 {[%clk 0:03:00.2]} 10... O-O {[%clk 0:02:43.4]} 11. Nf1
{[%clk 0:02:59.4]} 11... dxe4 {[%clk 0:02:33]} 12. dxe4 {[%clk 0:02:58.4]} 12...
e5 {[%clk 0:02:32.6]} 13. Ne3 {[%clk 0:02:53.7]} 13... Be6 {[%clk 0:02:31.6]}
14. Nh4 {[%clk 0:02:54.2]} 14... Rfd8 {[%clk 0:02:30.6]} 15. Nhf5 {[%clk
0:02:48.6]} 15... Bf8 {[%clk 0:02:30.3]} 16. Bd2 {[%clk 0:02:35.4]} 16... g6
{[%clk 0:02:29]} 17. Nh4 {[%clk 0:02:33.9]} 17... Bg7 {[%clk 0:02:28.5]} 18.
Rad1 {[%clk 0:02:32.6]} 18... Ng4 {[%clk 0:02:26.1]} 19. Nd5 {[%clk 0:02:27]}
19... Qa5 {[%clk 0:01:42.8]} 20. h3 {[%clk 0:02:15.9]} 20... Nf6 {[%clk
0:01:40.6]} 21. Bxh6 {[%clk 0:02:06.3]} 21... Bxh6 {[%clk 0:01:37.7]} 22. Nxf6+
{[%clk 0:02:05]} 22... Kg7 {[%clk 0:01:38.1]} 23. Nd5 {[%clk 0:02:02.7]} 23...
Rd7 {[%clk 0:01:27.8]} 24. b3 {[%clk 0:01:59.9]} 24... Rad8 {[%clk 0:01:27]} 25.
Qe2 {[%clk 0:01:37.1]} 25... b5 {[%clk 0:01:25.9]} 26. Qf3 {[%clk 0:01:34.2]}
26... Bg5 {[%clk 0:01:23.5]} 27. Qe2 {[%clk 0:01:24.7]} 27... Ne7 {[%clk
0:01:10.9]} 28. c4 {[%clk 0:01:22.8]} 28... Nc6 {[%clk 0:01:06.8]} 29. Nf3
{[%clk 0:01:19.6]} 29... Nd4 {[%clk 0:00:42.2]} 30. Nxd4 {[%clk 0:01:18.1]}
30... cxd4 {[%clk 0:00:42.1]} 31. cxb5 {[%clk 0:01:18.1]} 31... Rb7 {[%clk
0:00:38.9]} 32. a4 {[%clk 0:01:11.8]} 32... f6 {[%clk 0:00:34.4]} 33. h4 {[%clk
0:01:08]} 33... Bh6 {[%clk 0:00:33.9]} 34. Qf3 {[%clk 0:01:06.9]} 34... Rf8
{[%clk 0:00:33]} 35. h5 {[%clk 0:01:00.5]} 35... Bg5 {[%clk 0:00:29.2]} 36. hxg6
{[%clk 0:00:59]} 36... Kxg6 {[%clk 0:00:28.2]} 37. Ra1 {[%clk 0:00:48.3]} 37...
Rh7 {[%clk 0:00:25.8]} 38. b4 {[%clk 0:00:48]} 38... Qd8 {[%clk 0:00:25.3]} 39.
a5 {[%clk 0:00:46.3]} 39... Rfh8 {[%clk 0:00:20.6]} 40. b6 {[%clk 0:00:45.9]}
40... Qd7 {[%clk 0:00:19.8]} 41. bxa7 {[%clk 0:00:42]} 41... Qxa7 {[%clk
0:00:19.7]} 42. Qd3 {[%clk 0:00:40]} 42... Qd7 {[%clk 0:00:18.9]} 43. b5 {[%clk
0:00:39.3]} 43... Bh3 {[%clk 0:00:18.6]} 44. Bf3 {[%clk 0:00:37.2]} 44... Bg4
{[%clk 0:00:18.2]} 45. a6 {[%clk 0:00:34.5]} 45... Bxf3 {[%clk 0:00:16.2]} 46.
Qxf3 {[%clk 0:00:34.9]} 46... Qh3 {[%clk 0:00:16.2]} 47. a7 {[%clk 0:00:29.3]}
47... Qh2+ {[%clk 0:00:16]} 48. Kf1 {[%clk 0:00:29.3]} 48... Ra8 {[%clk
0:00:11.2]} 49. b6 {[%clk 0:00:28.5]} 49... Rb7 {[%clk 0:00:10.9]} 50. Qf5+
{[%clk 0:00:28.1]} 50... Kg7 {[%clk 0:00:10.8]} 51. Qf3 {[%clk 0:00:27.8]} 51...
Qh3+ {[%clk 0:00:10.7]} 52. Ke2 {[%clk 0:00:27.1]} 52... Qd7 {[%clk 0:00:11.2]}
53. Rac1 {[%clk 0:00:25.4]} 53... Qb5+ {[%clk 0:00:11.1]} 54. Qd3 {[%clk
0:00:23.9]} 54... Qb2+ {[%clk 0:00:11.1]} 55. Rc2 {[%clk 0:00:23.4]} 55... Qb5
{[%clk 0:00:09.1]} 56. Qxb5 {[%clk 0:00:21.8]} 1-0

[Event "Early-Titled-Tuesday-Blitz-February-06-2024"]
[Site "Chess.com"]
[Date "2024.02.06"]
[Round "3"]
[White "Squirlolz"]
[Black "smotherhubbard"]
[Result "1-0"]
[WhiteElo "2566"]
[BlackElo "2366"]
[TimeControl "180+1"]
[EndTime "8:28:50 PST"]
[Termination "Squirlolz won on time"]

1. e4 {[%clk 0:02:12.1]} 1... e6 {[%clk 0:02:58.7]} 2. d3 {[%clk 0:02:11.4]}
2... d5 {[%clk 0:02:59.2]} 3. Nd2 {[%clk 0:02:11.3]} 3... Nf6 {[%clk 0:02:57.4]}
4. e5 {[%clk 0:02:10.5]} 4... Nfd7 {[%clk 0:02:57]} 5. f4 {[%clk 0:02:11.2]}
5... c5 {[%clk 0:02:56.9]} 6. g3 {[%clk 0:02:11.2]} 6... Nc6 {[%clk 0:02:56.4]}
7. Bg2 {[%clk 0:02:11.3]} 7... f6 {[%clk 0:02:56.6]} 8. exf6 {[%clk 0:02:10.3]}
8... Nxf6 {[%clk 0:02:56.8]} 9. Nh3 {[%clk 0:02:01.4]} 9... Bd6 {[%clk
0:02:34.2]} 10. O-O {[%clk 0:01:51.3]} 10... O-O {[%clk 0:02:33.4]} 11. Nf3
{[%clk 0:01:52]} 11... e5 {[%clk 0:02:26.9]} 12. fxe5 {[%clk 0:01:46.6]} 12...
Nxe5 {[%clk 0:02:27.8]} 13. Nf4 {[%clk 0:01:44.3]} 13... Bg4 {[%clk 0:02:19.2]}
14. h3 {[%clk 0:01:22.1]} 14... Nxf3+ {[%clk 0:01:44.5]} 15. Bxf3 {[%clk
0:01:23]} 15... Bxf4 {[%clk 0:01:34.7]} 16. Bxf4 {[%clk 0:01:00.3]} 16... Bxh3
{[%clk 0:01:33.6]} 17. Re1 {[%clk 0:00:58.1]} 17... c4 {[%clk 0:01:23.3]} 18.
dxc4 {[%clk 0:00:55.8]} 18... Qb6+ {[%clk 0:01:22.3]} 19. Kh2 {[%clk 0:00:55.1]}
19... Bf5 {[%clk 0:01:07.6]} 20. cxd5 {[%clk 0:00:55.1]} 20... Qf2+ {[%clk
0:01:05.9]} 21. Kh1 {[%clk 0:00:47.5]} 21... g5 {[%clk 0:00:57.9]} 22. Be5
{[%clk 0:00:34.3]} 22... Rae8 {[%clk 0:00:48.7]} 23. Rf1 {[%clk 0:00:23.2]}
23... Qc5 {[%clk 0:00:40.5]} 24. Bd4 {[%clk 0:00:18.7]} 24... Qd6 {[%clk
0:00:36.2]} 25. Kg2 {[%clk 0:00:12.6]} 25... g4 {[%clk 0:00:29.9]} 26. Be2
{[%clk 0:00:13.1]} 26... Qxd5+ {[%clk 0:00:29.7]} 27. Kg1 {[%clk 0:00:11.8]}
27... Ne4 {[%clk 0:00:26.9]} 28. Bxg4 {[%clk 0:00:06.1]} 28... Nxg3 {[%clk
0:00:23.9]} 29. Bf3 {[%clk 0:00:04.8]} 29... Qd6 {[%clk 0:00:18.2]} 30. Rf2
{[%clk 0:00:05.1]} 30... Qg6 {[%clk 0:00:15.7]} 31. Rg2 {[%clk 0:00:05.4]} 31...
Bh3 {[%clk 0:00:14.5]} 32. Bd5+ {[%clk 0:00:04.1]} 32... Be6 {[%clk 0:00:13.1]}
33. Bxe6+ {[%clk 0:00:02.4]} 33... Rxe6 {[%clk 0:00:14]} 34. Qd3 {[%clk
0:00:02.1]} 34... Qxd3 {[%clk 0:00:09.4]} 35. cxd3 {[%clk 0:00:02.8]} 35... Rg6
{[%clk 0:00:10]} 36. Re1 {[%clk 0:00:02.3]} 36... Nf5 {[%clk 0:00:09.9]} 37.
Rxg6+ {[%clk 0:00:02.2]} 37... hxg6 {[%clk 0:00:10.8]} 38. Bc3 {[%clk
0:00:02.8]} 38... Kf7 {[%clk 0:00:10.3]} 39. Kg2 {[%clk 0:00:03]} 39... Rd8
{[%clk 0:00:10.9]} 40. Rh1 {[%clk 0:00:02.4]} 40... Rxd3 {[%clk 0:00:09.8]} 41.
Rh7+ {[%clk 0:00:02.2]} 41... Ke6 {[%clk 0:00:10.4]} 42. Rxb7 {[%clk 0:00:03.1]}
42... Rg3+ {[%clk 0:00:09.3]} 43. Kf2 {[%clk 0:00:03.6]} 43... Kd5 {[%clk
0:00:08.4]} 44. Rxa7 {[%clk 0:00:04.1]} 44... Ke4 {[%clk 0:00:08.5]} 45. Ra4+
{[%clk 0:00:04.3]} 45... Kd3 {[%clk 0:00:07.3]} 46. Rf4 {[%clk 0:00:02.4]} 46...
Re3 {[%clk 0:00:06.2]} 47. Rf3 {[%clk 0:00:02.6]} 47... Ke4 {[%clk 0:00:04.9]}
48. Rxe3+ {[%clk 0:00:02.8]} 48... Nxe3 {[%clk 0:00:05.8]} 49. Bd2 {[%clk
0:00:02]} 49... Nc4 {[%clk 0:00:05.2]} 50. Bc3 {[%clk 0:00:02.1]} 50... g5
{[%clk 0:00:03.7]} 51. b3 {[%clk 0:00:02.1]} 51... Nd6 {[%clk 0:00:03.3]} 52.
Kg3 {[%clk 0:00:02.5]} 52... Kf5 {[%clk 0:00:03.5]} 53. Bb4 {[%clk 0:00:02.4]}
53... Ne4+ {[%clk 0:00:03.6]} 54. Kg2 {[%clk 0:00:03]} 54... g4 {[%clk
0:00:03.7]} 55. a4 {[%clk 0:00:03.5]} 55... Kf4 {[%clk 0:00:03.6]} 56. a5 {[%clk
0:00:03.2]} 56... Nf6 {[%clk 0:00:02.8]} 57. a6 {[%clk 0:00:03.7]} 57... Nd7
{[%clk 0:00:02.7]} 58. Ba5 {[%clk 0:00:02]} 1-0

[Event "Early-Titled-Tuesday-Blitz-February-06-2024"]
[Site "Chess.com"]
[Date "2024.02.06"]
[Round "3"]
[White "andrzej"]
[Black "Elnaz_Kaliakhmet"]
[Result "0-1"]
[WhiteElo "2421"]
[BlackElo "2203"]
[TimeControl "180+1"]
[EndTime "8:28:50 PST"]
[Termination "Elnaz_Kaliakhmet won by checkmate"]

1. e4 {[%clk 0:02:50.2]} 1... c5 {[%clk 0:02:54.5]} 2. Nf3 {[%clk 0:02:50.2]}
2... Nc6 {[%clk 0:02:54.9]} 3. d4 {[%clk 0:02:50.6]} 3... cxd4 {[%clk
0:02:55.8]} 4. Nxd4 {[%clk 0:02:51.3]} 4... Nf6 {[%clk 0:02:56.1]} 5. Nc3 {[%clk
0:02:51.3]} 5... d6 {[%clk 0:02:56.5]} 6. Bg5 {[%clk 0:02:51.8]} 6... Bd7 {[%clk
0:02:57]} 7. Be2 {[%clk 0:02:45.4]} 7... Qb6 {[%clk 0:02:45.7]} 8. Nb3 {[%clk
0:02:41.6]} 8... e6 {[%clk 0:02:40.5]} 9. Bxf6 {[%clk 0:02:40.2]} 9... gxf6
{[%clk 0:02:40.2]} 10. Qd2 {[%clk 0:02:39.8]} 10... h5 {[%clk 0:02:33.6]} 11.
Nb5 {[%clk 0:02:21.5]} 11... Ne5 {[%clk 0:02:28.4]} 12. N5d4 {[%clk 0:02:21.7]}
12... a6 {[%clk 0:02:23.2]} 13. Qa5 {[%clk 0:02:09]} 13... Qxa5+ {[%clk
0:02:19]} 14. Nxa5 {[%clk 0:02:08.8]} 14... d5 {[%clk 0:02:09.6]} 15. Ndb3
{[%clk 0:01:49.1]} 15... b6 {[%clk 0:02:04.1]} 16. exd5 {[%clk 0:01:31.8]} 16...
bxa5 {[%clk 0:02:02.7]} 17. dxe6 {[%clk 0:01:32.4]} 17... fxe6 {[%clk
0:01:58.5]} 18. O-O {[%clk 0:01:30.7]} 18... a4 {[%clk 0:01:53.4]} 19. Na5
{[%clk 0:01:28]} 19... Bb4 {[%clk 0:01:50.4]} 20. Nc4 {[%clk 0:01:28.3]} 20...
Nxc4 {[%clk 0:01:49.9]} 21. Bxc4 {[%clk 0:01:29.2]} 21... Bb5 {[%clk 0:01:44.8]}
22. Bxb5+ {[%clk 0:01:06.3]} 22... axb5 {[%clk 0:01:45.7]} 23. c3 {[%clk
0:01:05.2]} 23... Bc5 {[%clk 0:01:44.8]} 24. Rfe1 {[%clk 0:01:01.2]} 24... Kf7
{[%clk 0:01:43.9]} 25. g3 {[%clk 0:00:55.1]} 25... Rad8 {[%clk 0:01:43.3]} 26.
Re2 {[%clk 0:00:55.1]} 26... h4 {[%clk 0:01:42.2]} 27. Kg2 {[%clk 0:00:54.9]}
27... hxg3 {[%clk 0:01:40.6]} 28. hxg3 {[%clk 0:00:54.9]} 28... Rd6 {[%clk
0:01:09.7]} 29. f3 {[%clk 0:00:53.3]} 29... Rhd8 {[%clk 0:01:09.4]} 30. Rae1
{[%clk 0:00:51.8]} 30... Rd2 {[%clk 0:01:08.8]} 31. f4 {[%clk 0:00:51.6]} 31...
Rxe2+ {[%clk 0:01:08.7]} 32. Rxe2 {[%clk 0:00:52.5]} 32... Rd1 {[%clk
0:01:06.2]} 33. Kf3 {[%clk 0:00:51.7]} 33... Rf1+ {[%clk 0:01:02.2]} 34. Kg2
{[%clk 0:00:51.1]} 34... Rg1+ {[%clk 0:01:02]} 35. Kf3 {[%clk 0:00:51.3]} 35...
Ra1 {[%clk 0:01:01.8]} 36. b4 {[%clk 0:00:45.6]} 36... axb3 {[%clk 0:00:57.9]}
37. axb3 {[%clk 0:00:45.4]} 37... Rb1 {[%clk 0:00:54.3]} 38. b4 {[%clk
0:00:44.1]} 38... Be7 {[%clk 0:00:53.6]} 39. g4 {[%clk 0:00:40.4]} 39... Rc1
{[%clk 0:00:53.1]} 40. Re3 {[%clk 0:00:40.3]} 40... Bd8 {[%clk 0:00:48.7]} 41.
Rd3 {[%clk 0:00:40.2]} 41... Ke7 {[%clk 0:00:46.9]} 42. g5 {[%clk 0:00:37]}
42... fxg5 {[%clk 0:00:46.6]} 43. fxg5 {[%clk 0:00:37.9]} 43... Rg1 {[%clk
0:00:46.5]} 44. Kf4 {[%clk 0:00:34.3]} 44... Bc7+ {[%clk 0:00:46.7]} 45. Ke4
{[%clk 0:00:33.7]} 45... Rxg5 {[%clk 0:00:46.4]} 46. Rd1 {[%clk 0:00:31.7]}
46... Rg4+ {[%clk 0:00:45.9]} 47. Kf3 {[%clk 0:00:31.2]} 47... Rc4 {[%clk
0:00:46.1]} 48. Rd3 {[%clk 0:00:31]} 48... Be5 {[%clk 0:00:45.7]} 49. Ke2 {[%clk
0:00:28.1]} 49... Rxc3 {[%clk 0:00:44.9]} 50. Rd1 {[%clk 0:00:25.5]} 50... Rc4
{[%clk 0:00:44.5]} 51. Rb1 {[%clk 0:00:25.5]} 51... Bd6 {[%clk 0:00:44.1]} 52.
Kd3 {[%clk 0:00:25.9]} 52... Rxb4 {[%clk 0:00:44]} 53. Rh1 {[%clk 0:00:26.6]}
53... Rg4 {[%clk 0:00:43.3]} 54. Rh7+ {[%clk 0:00:26.9]} 54... Kf6 {[%clk
0:00:43.7]} 55. Rb7 {[%clk 0:00:27.3]} 55... b4 {[%clk 0:00:43.5]} 56. Rb6
{[%clk 0:00:27.8]} 56... Be5 {[%clk 0:00:43.7]} 57. Ke2 {[%clk 0:00:26.5]} 57...
Rc4 {[%clk 0:00:42.3]} 58. Kf3 {[%clk 0:00:26.6]} 58... Bc3 {[%clk 0:00:42]} 59.
Ke3 {[%clk 0:00:25.8]} 59... Rc5 {[%clk 0:00:40.5]} 60. Kd3 {[%clk 0:00:25.1]}
60... Ke5 {[%clk 0:00:39.5]} 61. Rb8 {[%clk 0:00:25]} 61... Kf4 {[%clk
0:00:38.8]} 62. Rg8 {[%clk 0:00:25.5]} 62... e5 {[%clk 0:00:38.5]} 63. Rf8+
{[%clk 0:00:26.4]} 63... Kg5 {[%clk 0:00:38.3]} 64. Ke4 {[%clk 0:00:27.3]} 64...
b3 {[%clk 0:00:37.1]} 65. Rg8+ {[%clk 0:00:28.2]} 65... Kf6 {[%clk 0:00:36.6]}
66. Rf8+ {[%clk 0:00:27.7]} 66... Ke7 {[%clk 0:00:36.7]} 67. Rb8 {[%clk
0:00:28.2]} 67... b2 {[%clk 0:00:36.7]} 68. Kf5 {[%clk 0:00:28.1]} 68... Rc4
{[%clk 0:00:35.8]} 69. Rb6 {[%clk 0:00:26.1]} 69... Rb4 {[%clk 0:00:35.3]} 70.
Rh6 {[%clk 0:00:20.9]} 70... b1=Q+ {[%clk 0:00:33.9]} 71. Kg5 {[%clk 0:00:21.7]}
71... Qg1+ {[%clk 0:00:33.1]} 72. Kf5 {[%clk 0:00:22]} 72... Qg4# {[%clk
0:00:33.1]} 0-1

[Event "Early-Titled-Tuesday-Blitz-February-06-2024"]
[Site "Chess.com"]
[Date "2024.02.06"]
[Round "3"]
[White "vasblesk"]
[Black "Shushik"]
[Result "0-1"]
[WhiteElo "2740"]
[BlackElo "2544"]
[TimeControl "180+1"]
[EndTime "8:28:54 PST"]
[Termination "Shushik won on time"]

1. d4 {[%clk 0:03:00.9]} 1... Nf6 {[%clk 0:02:59.4]} 2. c4 {[%clk 0:03:00.2]}
2... e6 {[%clk 0:03:00.1]} 3. g3 {[%clk 0:03:00.5]} 3... d5 {[%clk 0:03:00.2]}
4. Bg2 {[%clk 0:02:59.4]} 4... dxc4 {[%clk 0:03:00.4]} 5. Nf3 {[%clk 0:02:59.9]}
5... Nc6 {[%clk 0:03:00.7]} 6. O-O {[%clk 0:02:55.7]} 6... Rb8 {[%clk
0:03:00.9]} 7. a4 {[%clk 0:02:51.3]} 7... b6 {[%clk 0:03:01.1]} 8. Ne5 {[%clk
0:02:47.5]} 8... Nxe5 {[%clk 0:02:53.5]} 9. dxe5 {[%clk 0:02:48.4]} 9... Nd5
{[%clk 0:02:53]} 10. Nc3 {[%clk 0:02:46.3]} 10... Bb7 {[%clk 0:02:50.1]} 11. Ne4
{[%clk 0:02:21]} 11... Be7 {[%clk 0:02:44.9]} 12. Qc2 {[%clk 0:02:18]} 12... Ba6
{[%clk 0:02:37.9]} 13. Rd1 {[%clk 0:02:12.3]} 13... O-O {[%clk 0:02:31]} 14. Nc3
{[%clk 0:02:06.1]} 14... c6 {[%clk 0:02:13.4]} 15. Bd2 {[%clk 0:01:41.9]} 15...
Qc7 {[%clk 0:02:11.4]} 16. Qe4 {[%clk 0:01:41.7]} 16... Rbd8 {[%clk 0:02:05.1]}
17. h4 {[%clk 0:01:38.4]} 17... Nxc3 {[%clk 0:01:47.8]} 18. bxc3 {[%clk
0:01:30.6]} 18... Rd5 {[%clk 0:01:45.9]} 19. Bf4 {[%clk 0:01:24.8]} 19... Rfd8
{[%clk 0:01:46]} 20. Rdb1 {[%clk 0:01:20.6]} 20... Bf8 {[%clk 0:00:59.9]} 21. h5
{[%clk 0:01:12.6]} 21... h6 {[%clk 0:00:59.9]} 22. Bf3 {[%clk 0:01:08.2]} 22...
c5 {[%clk 0:00:51.6]} 23. Kg2 {[%clk 0:00:52.7]} 23... R5d7 {[%clk 0:00:50]} 24.
g4 {[%clk 0:00:45.4]} 24... Be7 {[%clk 0:00:43.1]} 25. Kg3 {[%clk 0:00:05.3]}
25... Bb7 {[%clk 0:00:33.6]} 26. Qxc4 {[%clk 0:00:04.8]} 26... Bxf3 {[%clk
0:00:33.7]} 27. Kxf3 {[%clk 0:00:05.5]} 27... Qc6+ {[%clk 0:00:29.3]} 28. Qe4
{[%clk 0:00:05.9]} 28... Qd5 {[%clk 0:00:29.6]} 29. c4 {[%clk 0:00:05.4]} 29...
Qxe4+ {[%clk 0:00:28.9]} 30. Kxe4 {[%clk 0:00:05.6]} 30... Rd4+ {[%clk
0:00:29.6]} 31. Kf3 {[%clk 0:00:05.8]} 31... Rxc4 {[%clk 0:00:30.5]} 32. Rd1
{[%clk 0:00:06.2]} 32... Rcd4 {[%clk 0:00:29.9]} 33. Rdb1 {[%clk 0:00:05.6]}
33... c4 {[%clk 0:00:26.8]} 34. Be3 {[%clk 0:00:05.1]} 34... R4d5 {[%clk
0:00:26.6]} 35. Ke4 {[%clk 0:00:04.5]} 35... Bc5 {[%clk 0:00:23.7]} 36. Rc1
{[%clk 0:00:04.7]} 36... Bxe3 {[%clk 0:00:22.9]} 37. fxe3 {[%clk 0:00:05.3]}
37... Rc8 {[%clk 0:00:22.4]} 38. Rc2 {[%clk 0:00:05.7]} 38... Kf8 {[%clk
0:00:21.5]} 39. Rac1 {[%clk 0:00:05.6]} 39... Rdc5 {[%clk 0:00:21.6]} 40. Rc3
{[%clk 0:00:06.2]} 40... Ke7 {[%clk 0:00:21.6]} 41. Kd4 {[%clk 0:00:06.3]} 41...
Rd8+ {[%clk 0:00:19.9]} 42. Ke4 {[%clk 0:00:06.8]} 42... Rdd5 {[%clk 0:00:19.7]}
43. Rxc4 {[%clk 0:00:07.4]} 43... Rxe5+ {[%clk 0:00:19.9]} 44. Kf3 {[%clk
0:00:08]} 44... Red5 {[%clk 0:00:19.6]} 45. Rxc5 {[%clk 0:00:07.6]} 45... Rxc5
{[%clk 0:00:20]} 46. Rb1 {[%clk 0:00:08.3]} 46... Kd6 {[%clk 0:00:19.8]} 47.
Rd1+ {[%clk 0:00:08.7]} 47... Kc7 {[%clk 0:00:19.1]} 48. Rd4 {[%clk 0:00:08.9]}
48... e5 {[%clk 0:00:19.1]} 49. Rb4 {[%clk 0:00:08.2]} 49... Kd6 {[%clk
0:00:18.6]} 50. Rb1 {[%clk 0:00:07.7]} 50... Rc4 {[%clk 0:00:18.2]} 51. a5
{[%clk 0:00:07.6]} 51... Kc6 {[%clk 0:00:17.1]} 52. axb6 {[%clk 0:00:08.2]}
52... axb6 {[%clk 0:00:18]} 53. Rd1 {[%clk 0:00:08.7]} 53... b5 {[%clk
0:00:18.1]} 54. Rd8 {[%clk 0:00:08.9]} 54... b4 {[%clk 0:00:18.6]} 55. Rc8+
{[%clk 0:00:09.2]} 55... Kb5 {[%clk 0:00:18.9]} 56. Rb8+ {[%clk 0:00:09.8]}
56... Ka4 {[%clk 0:00:19.4]} 57. Rb7 {[%clk 0:00:10.5]} 57... b3 {[%clk
0:00:18.8]} 58. Ra7+ {[%clk 0:00:10.1]} 58... Kb4 {[%clk 0:00:18.5]} 59. Rxf7
{[%clk 0:00:10]} 59... Kc3 {[%clk 0:00:17.8]} 60. Rxg7 {[%clk 0:00:04.3]} 60...
b2 {[%clk 0:00:18]} 61. Rb7 {[%clk 0:00:03.9]} 61... Rb4 {[%clk 0:00:18.6]} 62.
Rc7+ {[%clk 0:00:04.5]} 62... Kd2 {[%clk 0:00:18.3]} 63. Rd7+ {[%clk 0:00:04.6]}
63... Ke1 {[%clk 0:00:17.9]} 64. g5 {[%clk 0:00:03.5]} 64... b1=Q {[%clk
0:00:16.8]} 0-1

[Event "Early-Titled-Tuesday-Blitz-February-06-2024"]
[Site "Chess.com"]
[Date "2024.02.06"]
[Round "3"]
[White "LaPiToB"]
[Black "Arteler"]
[Result "1-0"]
[WhiteElo "2312"]
[BlackElo "2568"]
[TimeControl "180+1"]
[EndTime "8:28:55 PST"]
[Termination "LaPiToB won by resignation"]

1. d4 {[%clk 0:03:00.9]} 1... d5 {[%clk 0:02:58.7]} 2. c4 {[%clk 0:03:00.5]}
2... e6 {[%clk 0:02:58.1]} 3. Nc3 {[%clk 0:03:00.1]} 3... Nf6 {[%clk 0:02:57.8]}
4. Nf3 {[%clk 0:02:57.1]} 4... Be7 {[%clk 0:02:57.2]} 5. Bf4 {[%clk 0:02:54.6]}
5... c6 {[%clk 0:02:55.6]} 6. e3 {[%clk 0:02:54]} 6... O-O {[%clk 0:02:55.2]} 7.
Be2 {[%clk 0:02:46.7]} 7... b6 {[%clk 0:02:50.7]} 8. O-O {[%clk 0:02:45.3]} 8...
Bb7 {[%clk 0:02:50.5]} 9. Rc1 {[%clk 0:02:39.7]} 9... Nbd7 {[%clk 0:02:40.4]}
10. cxd5 {[%clk 0:02:22.9]} 10... cxd5 {[%clk 0:02:40.1]} 11. Nb5 {[%clk
0:02:16.1]} 11... Ba6 {[%clk 0:02:24.1]} 12. Nc7 {[%clk 0:01:59.2]} 12... Bxe2
{[%clk 0:02:21.1]} 13. Qxe2 {[%clk 0:02:00.1]} 13... Rc8 {[%clk 0:02:15.6]} 14.
Nb5 {[%clk 0:01:53.2]} 14... a6 {[%clk 0:01:31.4]} 15. Na7 {[%clk 0:01:50.4]}
15... Rxc1 {[%clk 0:01:30.4]} 16. Rxc1 {[%clk 0:01:51.3]} 16... Qa8 {[%clk
0:00:40.7]} 17. Qxa6 {[%clk 0:01:41.2]} 17... Nb8 {[%clk 0:00:26.2]} 18. Bxb8
{[%clk 0:01:13.4]} 18... Rxb8 {[%clk 0:00:22.7]} 19. Rc8+ {[%clk 0:01:12]} 19...
Rxc8 {[%clk 0:00:20.1]} 20. Qxc8+ {[%clk 0:01:12.1]} 20... Qxc8 {[%clk
0:00:19.1]} 21. Nxc8 {[%clk 0:01:13]} 21... Bd8 {[%clk 0:00:19.4]} 22. Ne5
{[%clk 0:01:11]} 22... Ne4 {[%clk 0:00:17.7]} 23. f3 {[%clk 0:01:07.5]} 23...
Nd2 {[%clk 0:00:16.9]} 24. Nd7 {[%clk 0:00:54.3]} 24... b5 {[%clk 0:00:16.8]}
25. Nd6 {[%clk 0:00:52.1]} 25... Nc4 {[%clk 0:00:16.5]} 26. Nxb5 {[%clk
0:00:47.9]} 26... Nxb2 {[%clk 0:00:16.6]} 27. Kf2 {[%clk 0:00:46.5]} 27... Nc4
{[%clk 0:00:16.1]} 28. Ke2 {[%clk 0:00:44.4]} 28... h6 {[%clk 0:00:16.3]} 29. a4
{[%clk 0:00:43.3]} 29... Kh7 {[%clk 0:00:15.9]} 30. Na7 {[%clk 0:00:30.8]} 30...
g5 {[%clk 0:00:13.1]} 31. Nc6 {[%clk 0:00:30.5]} 31... Bc7 {[%clk 0:00:11.5]}
32. Kd3 {[%clk 0:00:24.5]} 32... Kg6 {[%clk 0:00:11.3]} 33. Nc5 {[%clk
0:00:21.2]} 33... Bxh2 {[%clk 0:00:09.7]} 34. e4 {[%clk 0:00:18.3]} 34... Bc7
{[%clk 0:00:08]} 35. exd5 {[%clk 0:00:18.5]} 35... exd5 {[%clk 0:00:08.9]} 36.
Ne7+ {[%clk 0:00:18.9]} 36... Kf6 {[%clk 0:00:08.4]} 37. Nxd5+ {[%clk
0:00:19.8]} 37... Kf5 {[%clk 0:00:07.8]} 38. Nxc7 {[%clk 0:00:20.7]} 38... Kf4
{[%clk 0:00:07.9]} 39. Kxc4 {[%clk 0:00:20.6]} 39... Kg3 {[%clk 0:00:08.1]} 40.
Ne4+ {[%clk 0:00:20.1]} 40... Kxg2 {[%clk 0:00:09]} 41. Nd2 {[%clk 0:00:20.4]}
41... h5 {[%clk 0:00:08.8]} 42. Nd5 {[%clk 0:00:19.9]} 42... h4 {[%clk
0:00:09.7]} 43. Ne3+ {[%clk 0:00:18.2]} 43... Kf2 {[%clk 0:00:09.7]} 44. Ng4+
{[%clk 0:00:18.5]} 44... Kg3 {[%clk 0:00:08.9]} 45. Kc3 {[%clk 0:00:18.8]} 45...
h3 {[%clk 0:00:08.5]} 46. a5 {[%clk 0:00:18.2]} 46... f6 {[%clk 0:00:08.7]} 47.
a6 {[%clk 0:00:17.9]} 47... f5 {[%clk 0:00:09.6]} 48. a7 {[%clk 0:00:18.3]}
48... fxg4 {[%clk 0:00:10.5]} 49. a8=Q {[%clk 0:00:19]} 49... h2 {[%clk
0:00:11.3]} 50. fxg4 {[%clk 0:00:18.7]} 50... Kxg4 {[%clk 0:00:09.5]} 51. Qh1
{[%clk 0:00:18.6]} 51... Kg3 {[%clk 0:00:09.9]} 52. Nf1+ {[%clk 0:00:19.5]}
52... Kh3 {[%clk 0:00:10]} 53. Qxh2+ {[%clk 0:00:20]} 53... Kg4 {[%clk
0:00:10.3]} 54. Qg3+ {[%clk 0:00:20.3]} 54... Kf5 {[%clk 0:00:10.6]} 55. Ne3+
{[%clk 0:00:20.9]} 55... Ke4 {[%clk 0:00:10.8]} 56. Qg4+ {[%clk 0:00:14.9]}
56... Kxe3 {[%clk 0:00:11.7]} 57. Qxg5+ {[%clk 0:00:15.4]} 57... Ke4 {[%clk
0:00:11.1]} 58. Qe5+ {[%clk 0:00:15.7]} 58... Kf3 {[%clk 0:00:09.8]} 59. d5
{[%clk 0:00:16.3]} 59... Kg4 {[%clk 0:00:10.7]} 60. d6 {[%clk 0:00:16.9]} 1-0